Workbook

Sheet Pasiūlymas
A1: Organizacija, kuriai teikiamas pasiūlymas:
B3: PASIŪLYMAS
B4: Šalčininkų rajono savivaldybės vietinės reikšmės kelių, gatvių su asfaltbetonio danga kapitalinio remonto darbų pirkimas
A6: Data: | B6: 2020-04-22
A7: Nr.: | B7: 481363
A8: Vieta: | B8: Kaunas
A10: Tiekėjo pavadinimas / Ūkio subjektų grupės nariai | C10: AB "Kauno tiltai"
A11: Tiekėjo kodas (-ai) | C11: 133729589
A12: Tiekėjo adresas (-ai) | C12: Ateities pl. 46, LT-52502, Kaunas
A13: Tiekėjo PVM mokėtojo kodas (-ai) | C13: LT337295811
A14: Tiekėjo / Ūkio subjektų grupės atsakingo partnerio sąskaitos numeris, banko pavadinimas ir banko kodas (-ai) | C14: Luminor Bank AB, b.k.40100, a.s.LT80 4010 0425 0006 0743
A15: Asmens atsakingo už pasiūlymą vardas, pavardė | C15: Rimantas Giedraitis
A16: Asmens atsakingo už pasiūlymą telefono numeris, el. pašto adresas | C16: Tel: 8 615 29874, el.paštas: rimantas.giedraitis@kaunotiltai.lt
A17: Tiekėjo / Ūkio subjektų grupės, laimėjimo atveju, pasirašančio sutartį asmens vardas, pavardė, pareigos | C17: Aldas Rusevičius, Generalinis direktorius
A18: Tiekėjo / Ūkio subjektų grupės, laimėjimo atveju, už sutarties vykdymą atsakingo asmens vardas, pavardė, telefono numeris, elektroninio pašto adresas | C18: Alvydas Petkūnas Tel.: 8 686 04170, el.paštas: alvydas.petkunas@kaunotiltai.lt
A19: Tiekėjo / Ūkio subjektų grupės kolegialaus priežiūros organo (Stebėtojų tarybos) ir (ar) kolegialaus valdymo organo (Valdybos) narių sąrašas (jei sudaryta) | C19: Valdybos nariai: Aldas Rusevičius;Kęstutis Pusčius; Pranas Benetis; Raimondas Polianinas, Vitalijus Popovas; Eugenijus Urlikas.Stebėtojų tarybos nariai: Marcin Michal Lewandowski; Miquel Llevat Vallespinosa; Dominik Mikolaj Radziwill; Pawel Sebastian Nogalski; Konrad Adam Trzonkowski; Tomasz Adam Matynia.
A22: Tiekėjo patvirtinimai:
A23: 1. Šiuo pasiūlymu pažymime, kad sutinkame su visomis pirkimo sąlygomis, nustatytomis: 1.1. viešojo pirkimo dokumentuose; 1.2. kituose pirkimo dokumentuose (jų paaiškinimuose, papildymuose). 2. Pasiūlymas galioja iki termino, nustatyto pirkimo dokumentuose.
A25: Tiekėjo siūloma kaina:
A26: * Tais atvejais, kai pagal galiojančius teisės aktus tiekėjui nereikia mokėti PVM, teikėjas privalo su pasiūlymu pateikti laisvos formos raštą dėl PVM netaikymo pagrindo.
A28: Nr. | B28: Pavadinimas | C28: Kiekis | D28: Mato vienetas | E28: Kaina be PVM, Eur | F28: Suma be PVM, Eur
A29: 1. | B29: Jašiūnų sen., Jašiūnų mstl., Saulėtoji g. Nr. JA-8040 ir J. Sniadeckio g. Nr. JA-8026 ruožo kapitalinis remontas, inžinerinės paslaugos
A30: 1.1. | B30: Jašiūnų sen., Jašiūnų mstl., Saulėtoji g. Nr. JA-8040 ir J. Sniadeckio g. Nr. JA-8026 ruožo kapitalinis remontas, inžinerinės paslaugos | C30: 1 | D30: kompl. | F30: =IF(ISBLANK(E30),"", PRODUCT(C30,E30)) -> 
E31: Suma be PVM | F31: =IF(F30="","",SUM(F30:F30)) ->  | G31: =IF(F30="","Neužpildytos visos objektų kainos","") -> Neužpildytos visos objektų kainos
E32: PVM suma
E33: Suma su PVM | F33: =IF(ISBLANK(F32), "", SUM(F31:F32)) -> 
A35: 2. | B35: Eišiškių sen., Mateikonių k., Kalnelio g. Nr. EI-6034 kapitalinis remontas, inžinerinės paslaugos
A36: 2.1. | B36: Eišiškių sen., Mateikonių k., Kalnelio g. Nr. EI-6034 kapitalinis remontas, inžinerinės paslaugos | C36: 1 | D36: kompl. | F36: =IF(ISBLANK(E36),"", PRODUCT(C36,E36)) -> 
E37: Suma be PVM | F37: =IF(F36="","",SUM(F36:F36)) ->  | G37: =IF(F36="","Neužpildytos visos objektų kainos","") -> Neužpildytos visos objektų kainos
E38: PVM suma
E39: Suma su PVM | F39: =IF(ISBLANK(F38), "", SUM(F37:F38)) -> 
A41: 3. | B41: Jašiūnų sen., Jašiūnų mstl., šv. Antano g., Nr. JA-8044 ruožo kapitalinis remontas, inžinerinės paslaugos
A42: 3.1. | B42: Jašiūnų sen., Jašiūnų mstl., šv. Antano g., Nr. JA-8044 ruožo kapitalinis remontas, inžinerinės paslaugos | C42: 1 | D42: kompl. | F42: =IF(ISBLANK(E42),"", PRODUCT(C42,E42)) -> 
E43: Suma be PVM | F43: =IF(F42="","",SUM(F42:F42)) ->  | G43: =IF(F42="","Neužpildytos visos objektų kainos","") -> Neužpildytos visos objektų kainos
E44: PVM suma
E45: Suma su PVM | F45: =IF(ISBLANK(F44), "", SUM(F43:F44)) -> 
A47: 4. | B47: Gerviškių sen. Kidarų k, Kidarų g. Nr. GE-7029 ir vietinės reikšmės kelio Nr. GE-47 (nuo rajoninio kelio Nr.3903 iki Kidarų g.) kapitalinis remontas, inžinerinės paslaugos
A48: 4.1. | B48: Gerviškių sen. Kidarų k, Kidarų g. Nr. GE-7029 ir vietinės reikšmės kelio Nr. GE-47 (nuo rajoninio kelio Nr.3903 iki Kidarų g.) kapitalinis remontas, inžinerinės paslaugos | C48: 1 | D48: kompl. | E48: 247880 | F48: =IF(ISBLANK(E48),"", PRODUCT(C48,E48)) -> 247880
E49: Suma be PVM | F49: =IF(F48="","",SUM(F48:F48)) -> 247880 | G49: =IF(F48="","Neužpildytos visos objektų kainos","") -> 
E50: PVM suma | F50: =+ROUND(E48*0.21,2) -> 52054.8
E51: Suma su PVM | F51: =IF(ISBLANK(F50), "", SUM(F49:F50)) -> 299934.8
A53: 5. | B53: Eišiškių sen. Emiliškių k., Melioratorių g. Nr. EI-6031 ruožo kapitalinis remontas, inžinerinės paslaugos
A54: 5.1. | B54: Eišiškių sen. Emiliškių k., Melioratorių g. Nr. EI-6031 ruožo kapitalinis remontas, inžinerinės paslaugos | C54: 1 | D54: kompl. | F54: =IF(ISBLANK(E54),"", PRODUCT(C54,E54)) -> 
E55: Suma be PVM | F55: =IF(F54="","",SUM(F54:F54)) ->  | G55: =IF(F54="","Neužpildytos visos objektų kainos","") -> Neužpildytos visos objektų kainos
E56: PVM suma
E57: Suma su PVM | F57: =IF(ISBLANK(F56), "", SUM(F55:F56)) -> 
A59: 6. | B59: Dieveniškių sen., Dieveniškių mstl. Naujakurių g. Nr. DI-5005 kapitalinis remontas, inžinerinės paslaugos
A60: 6.1. | B60: Dieveniškių sen., Dieveniškių mstl. Naujakurių g. Nr. DI-5005 kapitalinis remontas, inžinerinės paslaugos | C60: 1 | D60: kompl. | F60: =IF(ISBLANK(E60),"", PRODUCT(C60,E60)) -> 
E61: Suma be PVM | F61: =IF(F60="","",SUM(F60:F60)) ->  | G61: =IF(F60="","Neužpildytos visos objektų kainos","") -> Neužpildytos visos objektų kainos
E62: PVM suma
E63: Suma su PVM | F63: =IF(ISBLANK(F62), "", SUM(F61:F62)) -> 
A65: 7. | B65: Baltosios Vokės sen., Rūdninkų k., Linksmoji g. Nr. BV-2023 kapitalinis remontas, inžinerinės paslaugos
A66: 7.1. | B66: Baltosios Vokės sen., Rūdninkų k., Linksmoji g. Nr. BV-2023 kapitalinis remontas, inžinerinės paslaugos | C66: 1 | D66: kompl. | F66: =IF(ISBLANK(E66),"", PRODUCT(C66,E66)) -> 
E67: Suma be PVM | F67: =IF(F66="","",SUM(F66:F66)) ->  | G67: =IF(F66="","Neužpildytos visos objektų kainos","") -> Neužpildytos visos objektų kainos
E68: PVM suma
E69: Suma su PVM | F69: =IF(ISBLANK(F68), "", SUM(F67:F68)) -> 
A71: 8. | B71: Turgelių mstl., Ilgosios g. Nr. TU-13028 ruožo ir Gėlių g. Nr. TU-13027 kapitalinis remontas, inžinerinės paslaugos
A72: 8.1. | B72: Turgelių mstl., Ilgosios g. Nr. TU-13028 ruožo kapitalinis remontas, inžinerinės paslaugos | C72: 1 | D72: kompl. | E72: 48893 | F72: =IF(ISBLANK(E72),"", PRODUCT(C72,E72)) -> 48893
A73: 8.2. | B73: Turgelių mstl., Gėlių g. Nr. TU-13027 kapitalinis remontas, inžinerinės paslaugos | C73: 1 | D73: kompl. | E73: 79938 | F73: =IF(ISBLANK(E73),"", PRODUCT(C73,E73)) -> 79938
E74: Suma be PVM | F74: =IF((SUMPRODUCT(--(F72:F73=""))>0), "", SUM(F72:F73)) -> 128831 | G74: =IF((SUMPRODUCT(--(F72:F73=""))>0), "Neužpildytos visų objektų kainos", "") -> 
E75: PVM suma | F75: =+ROUND((E72+E73)*0.21,2) -> 27054.51
E76: Suma su PVM | F76: =IF(ISBLANK(F75), "", SUM(F74:F75)) -> 155885.51
A78: 9. | B78: Turgelių sen. Mikniškių k. Merkio g. Nr. TU-13009 ruožo, Liepų g. Nr.TU-13008 bei vietinės reikšmės kelio Nr. TU-30 ruožo kapitalinis remontas, inžinerinės
A79: 9.1. | B79: Turgelių sen. Mikniškių k. Merkio g. Nr. TU-13009 ruožo, Liepų g. Nr.TU-13008 bei vietinės reikšmės kelio Nr. TU-30 ruožo kapitalinis remontas, inžinerinės | C79: 1 | D79: kompl. | F79: =IF(ISBLANK(E79),"", PRODUCT(C79,E79)) -> 
E80: Suma be PVM | F80: =IF(F79="","",SUM(F79:F79)) ->  | G80: =IF(F79="","Neužpildytos visos objektų kainos","") -> Neužpildytos visos objektų kainos
E81: PVM suma
E82: Suma su PVM | F82: =IF(ISBLANK(F81), "", SUM(F80:F81)) -> 
A84: 10. | B84: Šalčininkų sen. Šalčininkėlių k. Mokyklos g. Nr. ŠA-12053 ruožo kapitalinis remontas, inžinerinės paslaugos
A85: 10.1. | B85: Šalčininkų sen. Šalčininkėlių k. Mokyklos g. Nr. ŠA-12053 ruožo kapitalinis remontas, inžinerinės paslaugos | C85: 1 | D85: kompl. | F85: =IF(ISBLANK(E85),"", PRODUCT(C85,E85)) -> 
E86: Suma be PVM | F86: =IF(F85="","",SUM(F85:F85)) ->  | G86: =IF(F85="","Neužpildytos visos objektų kainos","") -> Neužpildytos visos objektų kainos
E87: PVM suma
E88: Suma su PVM | F88: =IF(ISBLANK(F87), "", SUM(F86:F87)) -> 
A90: 11. | B90: Šalčininkų sen. Didžiųjų Baušių k. Didžiosios g. Nr. ŠA-12021 ruožo kapitalinis remontas, inžinerinės paslaugos
A91: 11.1. | B91: Šalčininkų sen. Didžiųjų Baušių k. Didžiosios g. Nr. ŠA-12021 ruožo kapitalinis remontas, inžinerinės paslaugos | C91: 1 | D91: kompl. | F91: =IF(ISBLANK(E91),"", PRODUCT(C91,E91)) -> 
E92: Suma be PVM | F92: =IF(F91="","",SUM(F91:F91)) ->  | G92: =IF(F91="","Neužpildytos visos objektų kainos","") -> Neužpildytos visos objektų kainos
E93: PVM suma
E94: Suma su PVM | F94: =IF(ISBLANK(F93), "", SUM(F92:F93)) -> 
A96: 12. | B96: Eišiškių sen. Eišiškių m. Bažnyčios g. Nr. EI-6005 ruožo kapitalinis remontas, inžinerinės paslaugos
A97: 12.1. | B97: Eišiškių sen. Eišiškių m. Bažnyčios g. Nr. EI-6005 ruožo kapitalinis remontas, inžinerinės paslaugos | C97: 1 | D97: kompl. | F97: =IF(ISBLANK(E97),"", PRODUCT(C97,E97)) -> 
E98: Suma be PVM | F98: =IF(F97="","",SUM(F97:F97)) ->  | G98: =IF(F97="","Neužpildytos visos objektų kainos","") -> Neužpildytos visos objektų kainos
E99: PVM suma
E100: Suma su PVM | F100: =IF(ISBLANK(F99), "", SUM(F98:F99)) -> 
A102: 13. | B102: Gerviškių sen. Pašalčies k. vietinės reikšmės kelio Nr. P-4 ir Pašalčies g. Nr.GE-7032 ruožo kapitalinis remontas, inžinerinės paslaugos
A103: 13.1. | B103: Gerviškių sen. Pašalčies k. vietinės reikšmės kelio Nr. P-4 ir Pašalčies g. Nr.GE-7032 ruožo kapitalinis remontas, inžinerinės paslaugos | C103: 1 | D103: kompl. | E103: 368055 | F103: =IF(ISBLANK(E103),"", PRODUCT(C103,E103)) -> 368055
E104: Suma be PVM | F104: =IF(F103="","",SUM(F103:F103)) -> 368055 | G104: =IF(F103="","Neužpildytos visos objektų kainos","") -> 
E105: PVM suma | F105: =+ROUND(E103*0.21,2) -> 77291.55
E106: Suma su PVM | F106: =IF(ISBLANK(F105), "", SUM(F104:F105)) -> 445346.55
A108: 14. | B108: Šalčininkų m. J. Sniadeckio g. Nr. ŠA-12074 ruožo rekonstrukcija
A109: 14.1. | B109: Šalčininkų m. J. Sniadeckio g. Nr. ŠA-12074 ruožo rekonstrukcija | C109: 1 | D109: kompl. | F109: =IF(ISBLANK(E109),"", PRODUCT(C109,E109)) -> 
E110: Suma be PVM | F110: =IF(F109="","",SUM(F109:F109)) ->  | G110: =IF(F109="","Neužpildytos visos objektų kainos","") -> Neužpildytos visos objektų kainos
E111: PVM suma
E112: Suma su PVM | F112: =IF(ISBLANK(F111), "", SUM(F110:F111)) -> 
A114: 15. | B114: Šalčininkų sen. Zavišonių k. P. Vendziagolskio g. Nr. ŠA-12145 ruožo kapitalinis remontas, inžinerinės paslaugos
A115: 15.1. | B115: Šalčininkų sen. Zavišonių k. P. Vendziagolskio g. Nr. ŠA-12145 ruožo kapitalinis remontas, inžinerinės paslaugos | C115: 1 | D115: kompl. | F115: =IF(ISBLANK(E115),"", PRODUCT(C115,E115)) -> 
E116: Suma be PVM | F116: =IF(F115="","",SUM(F115:F115)) ->  | G116: =IF(F115="","Neužpildytos visos objektų kainos","") -> Neužpildytos visos objektų kainos
E117: PVM suma
E118: Suma su PVM | F118: =IF(ISBLANK(F117), "", SUM(F116:F117)) -> 

Sheet Subtiekėjai
A2: Sutarties vykdymui numatome pasitelkti šiuos subtiekėjus / subteikėjus / subrangovus:
A4: Pavadinimas | C4: Kodas, adresas | F4: Perduodama veikla | I4: Perduodamos veiklos dalis nuo visos pirkimo sutarties
A5: UAB "Urban Line" | C5: Įm.k. 300149157, adresas: Liepkalnio g. 85, LT-02120 Vilnius | F5: Projektavimo paslaugos | I5: 3,44%.
A11: Pildyti tuomet, jei pirkimo sutarties vykdymui bus pasitelkti subtiekėjai (subteikėjai). Jeigu tiekėjas nenurodo subtiekėjų (subteikėjų), laikoma, kad vykdant pirkimo sutartį jų nebus pasitelkiama.
A13: Kartu su pasiūlymu pateikiami šie dokumentai:
A15: Nr. | B15: Dokumento pavadinimas | H15: Dokumentas yra konfidencialus? Taip/Ne
A16: 1. | B16: Įgaliojimai atstovauti_KONFIDENCIALU | E16: Įgaliojimas R. Giedraičiui | H16: Taip
A17: 2. | B17: Tiekėjo ir subtiekėjo_EBVPD | E17: EBVPD | H17: Ne
A18: 3. | B18: Pasiūlymo galiojimo užtikrinimas | E18: EBVPD | H18: Ne
A19: 4. | B19: Laidavimo draudimo liudijimas | H19: Ne
A20: 5. | B20: Ketinimų protokolas_KONFIDENCIALU | H20: Taip
A22: Pasiūlyme nurodyta Prekės kaina, išskyrus jos sudedamąsias dalis, subtiekėjai, taip pat kita informacija, kuri teisės aktų nustatyta tvarka turi būti skelbiama arba kitokiu būdu viešai prieinama visuomenei, nėra laikoma konfidencialia informacija. Konfidencialią informaciją sudaro, visų pirma, komercinė (gamybinė) paslaptis ir konfidencialieji pasiūlymų aspektai. Informacija, kurią viešai skelbti įpareigoja Lietuvos Respublikos įstatymai, negali būti tiekėjo nurodoma kaip konfidenciali, todėl, tiekėjui nurodžius tokią informaciją kaip konfidencialią, perkančioji organizacija turi teisę ją skelbti. Jei tiekėjas nenurodo konfidencialios informacijos, laikoma, kad konfidencialios informacijos tiekėjo pasiūlyme nėra. Vadovaujantis Informacijos viešinimo Centrinėje viešųjų pirkimų informacinėje sistemoje tvarkos aprašu, patvirtintu Viešųjų pirkimų tarnybos direktoriaus 2017 m. birželio 19 d. įsakymu Nr. 1S-91 „Dėl Informacijos viešinimo Centrinėje viešųjų pirkimų informacinėje sistemoje tvarkos aprašo patvirtinimo“, perkančioji organizacija laimėjusio dalyvio pasiūlymą, išskyrus informaciją, kurią tiekėjas nurodė kaip konfidencialią, paskelbs CVP IS.
A24: Pasiūlymo galiojimo užtikrinimui pateikiame (jei taikoma):
A25: Draudimo bendrovės ADB „Gjensidige“ 3000,00 EUR vertės laidavimo draudimo raštą Nr. 3165394
A26: (Nurodyti užtikrinimo būdą, dydį, dokumentus)
A29: Tiekėjo arba jo įgalioto asmens pareigų pavadinimas: | E29: Pasiūlymų skyriaus vadovas
A32: Pasirašančio asmens vardas ir pavardė: | E32: Rimantas Giedraitis
A100: 3229 2020-04-17 15:06:25
